[Event "Slovakian ECo-C Extraliga 2024-25"]
[Site "Slovakia"]
[Date "2025.01.19"]
[Round "4.1"]
[White "Aczel, Gergely"]
[Black "Plat, Vojtech"]
[Result "1/2-1/2"]
[Annotator "TA"]
[ECO "D35"]
[WhiteElo "2488"]
[BlackElo "2464"]
[PlyCount "87"]
[EventDate "2024.09.12"]
[EventType "team-tourn"]
[EventCountry "SVK"]
[SourceTitle "playchess.com"]
[Source "ChessBase"]
[SourceQuality "1"]
[TimeControl "5400+30"]

{[%evp 18,87,28,26,32,15,41,33,37,39,60,65,55,60,67,35,47,42,50,45,40,40,55,40,47,40,55,42,32,40,39,32,36,46,47,43,37,40,41,12,8,12,18,19,220,227,220,214,206,15,15,0,0,0,0,0,0,0,0,0,0,0,17,16,646,635,631,604,29967,29968,5110,4727]} 1. d4 {[%emt 0:00:03]} Nf6 {[%emt 0:00:30]} 2. c4 {[%emt 0:00:07]} e6 {[%emt 0:00:55]} 3. Nc3 {[%emt 0:00:05]} d5 {[%emt 0:00:10]} 4. cxd5 {[%emt 0:00:05]} exd5 {[%emt 0:00:09]} 5. Bg5 {[%emt 0:00:06]} c6 {[%emt 0:00:13]} 6. e3 {[%emt 0:00:06]} Bf5 {[%emt 0:00:10]} 7. Qf3 {[%emt 0:00:12]} Bg6 {[%emt 0:00:04]} 8. Bxf6 {[%emt 0:00:06]} Qxf6 {[%emt 0:00:04]} 9. Qxf6 {[%emt 0:00:06]} gxf6 {[%emt 0:00:03]} 10. Nf3 {[%emt 0:00:10]} Nd7 {[%emt 0:00:34][%cal Bb8d7,Bd7f6,Bf6e4,Be4g3][%mdl 32]} 11. Nh4 {[%emt 0:00:25]} Bb4 {[%emt 0:00:24]} 12. a3 {[%emt 0:02:12]} Be7 {[%emt 0:08:18]} 13. Ne2 {[%emt 0:01:42]} f5 {[%emt 0:04:54]} 14. g3 {[%emt 0:08:02]} Bxh4 {[%emt 0:03:20]} 15. gxh4 {[%emt 0:00:06]} Nf6 {[%emt 0:00:11]} 16. Ng3 {[%emt 0:09:01]} Ke7 {[%emt 0:12:14]} 17. Bh3 {[%emt 0:11:26]} Ne4 {[%emt 0:02:33]} 18. f3 {[%emt 0:31:15]} (18. Bxf5 $2 Nxg3 19. Bxg6 Nxh1 $19) 18... Nxg3 $1 {[%emt 0:03:02]} 19. hxg3 {[%emt 0:00:02]} a5 {[%emt 0:00:46]} 20. Kf2 {[%emt 0:03:27]} f6 {[%emt 0:01:01]} 21. Rac1 {[%emt 0:17:07]} Kd6 {[%emt 0:01:31]} 22. h5 {[%emt 0:01:50]} Bxh5 {[%emt 0:00:39]} 23. Bxf5 {[%emt 0:00:07]} Bg6 {[%emt 0:00:07]} 24. g4 {[%emt 0:04:57]} Bxf5 {[%emt 0:01:16]} 25. gxf5 $14 {[%emt 0:00:01][%mdl 4096] Endgame KRR-KRR} h5 $1 {[%emt 0:01:08]} 26. Rcg1 {[%emt 0:00:06]} Rh7 {[%emt 0:05:08]} 27. Rg6 {[%emt 0:00:19]} Ke7 {[%emt 0:01:26]} 28. e4 dxe4 {[%emt 0:04:51]} 29. fxe4 {[%emt 0:02:15]} h4 {[%emt 0:02:32]} 30. Rh3 {[%emt 0:00:17]} Kf7 $2 {[%emt 0:05:11]} (30... a4 $11 {and Black stays safe.}) 31. e5 $18 {[%emt 0:06:05]} fxe5 {[%emt 0:00:45]} 32. dxe5 {[%emt 0:00:02] Hoping for e6+.} Rd8 {[%emt 0:02:47]} 33. Rb3 $2 {[%emt 0:02:37]} (33. e6+ $18 Ke7 34. Ke3) 33... Kf8 $11 {[%emt 0:00:35]} 34. Rf6+ {[%emt 0:00:34]} Ke8 {[%emt 0:01:46]} 35. Re6+ {[%emt 0:00:13]} Kf8 {[%emt 0:00:02]} 36. Rf6+ {[%emt 0:00:06]} Ke8 {[%emt 0:00:05]} 37. Re6+ {[%emt 0:02:13]} Kf8 {[%emt 0:00:24]} 38. Rf6+ {[%emt 0:01:14]} Ke8 39. Rg6 Kf8 {Prevents Rg8+} 40. e6 {[%cal Be5e6,Be6e7][%mdl 32]} h3 $2 {[%mdl 8192]} (40... Rd2+ $11 41. Ke3 Rd5) 41. f6 $18 {White wants to mate with Rbg3.} Rd2+ {[#]} 42. Ke3 $1 h2 43. e7+ (43. Kxd2 $2 h1=Q (43... h1=R $2 44. Re3 $18) 44. e7+ Kf7 45. Rg7+ Rxg7 (45... Kxf6 46. Rxh7 Qg2+ 47. Kc1 $16) 46. fxg7 Qg2+ 47. Kc1 Qg5+ (47... Kxe7 $2 48. Rxb7+ Kd6 49. Kb1 $19) 48. Kb1 Qxe7 49. Rf3+ Kxg7 50. Rg3+ Kf6 $19) (43. f7 Rxf7 (43... h1=R 44. Rg8+ Ke7 45. f8=Q+ Kxe6 46. Rg6+ Ke5 47. Qf6+ Kd5 48. Rg5+ Kc4 49. Qc3#) 44. Rh6 Rg2 (44... Rff2 45. Rxb7 Rde2+ 46. Kd3 $11) 45. exf7 (45. Rh8+ Rg8 $19) 45... Rg3+ 46. Kd2 Rxb3 $11) 43... Kf7 44. Rg8 (44. Kxd2 $2 h1=Q (44... h1=R $2 {perishes.} 45. Rg7+ Rxg7 46. fxg7 $18) 45. Rg7+ Rxg7 (45... Kxf6 46. Rxh7 Qg2+ 47. Kc1 $16) 46. fxg7 Qh2+ 47. Ke3 Qe5+ (47... Kxg7 48. e8=Q $11) 48. Kf2 Qxg7 (48... Kxe7 $2 49. Rxb7+ Kd6 50. g8=Q $18) (48... Qxe7 $2 49. Rg3 $19) 49. Rxb7 Qd4+ 50. Ke2 c5 $19) 1/2-1/2

[Event "Slovakian ECo-C Extraliga 2024-25"]
[Site "Slovakia"]
[Date "2025.01.19"]
[Round "4.1"]
[White "Karacsonyi, Gellert"]
[Black "Neugebauer, Martin"]
[Result "1-0"]
[Annotator "TA"]
[ECO "B81"]
[WhiteElo "2384"]
[BlackElo "2509"]
[PlyCount "79"]
[EventDate "2024.09.12"]
[EventType "team-tourn"]
[EventCountry "SVK"]
[SourceTitle "playchess.com"]
[Source "ChessBase"]
[SourceQuality "1"]
[TimeControl "5400+30"]

{[%evp 15,78,36,49,31,59,68,102,121,123,131,145,123,179,169,206,205,264,258,285,115,124,128,155,81,112,114,112,114,119,88,110,115,112,70,64,74,102,60,66,62,81,29,104,38,60,60,64,32,62,62,63,-32,-21,-50,956,934,1245,1222,1204,1195,1125,1204,29996,29997,29999]} 1. e4 {[%emt 0:00:06]} c5 {[%emt 0:00:25]} 2. Nf3 {[%emt 0:00:06]} e6 {[%emt 0:00:29]} 3. d4 {[%emt 0:00:10]} cxd4 {[%emt 0:00:06]} 4. Nxd4 {[%emt 0:00:05]} Nf6 {[%emt 0:00:19]} 5. Nc3 {[%emt 0:00:10]} d6 {[%emt 0:00:14]} 6. g4 {[%emt 0:02:19]} h6 {[%emt 0:00:20]} 7. Rg1 $1 {[%emt 0:00:17][%mdl 4] is currently scoring better than 7.h4.} Be7 {[%emt 0:02:57]} 8. Be3 {[%emt 0:01:19]} Nc6 {[%emt 0:03:29]} 9. f4 {[%emt 0:04:11][%cal Bf2f4,Bf4f5][%mdl 32] B81: Sicilian Scheveningen: Keres Attack.} a6 {[%emt 0:07:29]} 10. Qf3 {[%emt 0:02:43]} Nd7 {[%emt 0:11:14]} 11. O-O-O {[%emt 0:03:17] White is better.} Qc7 $146 {[%emt 0:00:45]} (11... g5 12. Bc4 gxf4 13. Nxc6 bxc6 14. Bxf4 Qc7 15. Rgf1 Rh7 16. e5 d5 17. Bd3 Rg7 {0-1 Kotronias,V (2615)-Vouldis,A (2435) GRE-ch Athens 1996 (2)}) 12. Qh3 {[%emt 0:09:00] White is more active.} Nc5 {[%emt 0:15:04]} 13. f5 {[%emt 0:09:02]} g6 {[%emt 0:09:08]} (13... Nxd4 $16 {is a better defense.} 14. Bxd4 Bg5+ 15. Kb1 O-O) 14. Nxc6 $18 {[%emt 0:11:48]} (14. Bxh6 Nxd4 (14... Bg5+ 15. Bxg5 Rxh3 16. Bxh3 $15) 15. fxg6 (15. Rxd4 g5 $15) 15... fxg6 (15... Bg5+ $2 16. Bxg5 Rxh3 17. g7 $18) 16. Rxd4 Bf6 $15 (16... Bg5+ 17. Bxg5 Rxh3 18. Bxh3 $11)) 14... Qxc6 {[%emt 0:02:55]} 15. Bd4 $1 {[%emt 0:00:32]} (15. Bxh6 Bg5+ (15... Nxe4 $2 16. fxg6 fxg6 17. Bg2 $18) 16. Bxg5 Rxh3 17. Bxh3 b5 $11 (17... Nxe4 18. Bg2 $16)) 15... Bg5+ {[%emt 0:03:55]} 16. Kb1 $1 {[%emt 0:00:45]} e5 {[%emt 0:08:51]} 17. Bxc5 {[%emt 0:02:44]} (17. Be3 $18 {and the rest is easy. Threatens to win with Bxg5.} Be7 18. Nd5 (18. Bxh6 Bg5 $11)) 17... Qxc5 $16 {[%emt 0:00:21]} 18. Rg3 {[%emt 0:00:10]} b5 {[%emt 0:05:16]} 19. Nd5 {[%emt 0:05:10]} (19. Rgd3 $1) 19... b4 {[%emt 0:01:21]} 20. a3 {[%emt 0:01:56]} a5 {[%emt 0:00:54] [#]} 21. Bb5+ $1 {[%emt 0:00:40][%mdl 512]} Kf8 {[%emt 0:00:13] Black is weak on the light squares} 22. a4 {[%emt 0:00:21]} Kg7 {[%emt 0:00:29]} 23. Rf3 {[%emt 0:09:03]} Bb7 {[%emt 0:02:02]} 24. c4 {[%emt 0:08:01][%csl Od5] Strong Square White (d5)} Rhd8 {[%emt 0:17:32]} 25. Qf1 {[%emt 0:02:32]} Rf8 {[%emt 0:01:19]} 26. f6+ {[%emt 0:07:59]} (26. Qe1 {is interesting.} Rad8 27. h4 Bf4 28. g5) 26... Kh7 {[%emt 0:00:40]} 27. Qe1 {[%emt 0:00:11]} Rfd8 {[%emt 0:03:23]} 28. Rdd3 {[%emt 0:03:21]} (28. h4 $16 Bf4 (28... Bxd5 $2 29. Rxd5 Bxh4 30. Qxh4 $18) 29. Rfd3 (29. Nxf4 exf4 30. Rxf4 Qe5 $14)) 28... Rac8 {[%emt 0:01:22]} (28... Bxd5 $11 {keeps the balance.} 29. Rxd5 Qc8) 29. Rh3 {[%emt 0:01:23]} ({White should play} 29. Ne7 $16) 29... Bxd5 {[%emt 0:00:41]} 30. Rxd5 {[%emt 0:00:43]} Qb6 {[%emt 0:00:12][%cal Oc8c5]} 31. Rdd3 {[%emt 0:04:08]} Kg8 {[%emt 0:01:02]} 32. Rhf3 $1 {[%emt 0:02:15]} Bf4 {[%emt 0:01:05] [#]} 33. Rxf4 {[%emt 0:06:09]} exf4 $15 {[%emt 0:00:01]} 34. Qh4 {[%emt 0:00:08]} Kh7 {[%emt 0:01:21][%mdl 8192] This costs Black the game.} (34... b3 $15 35. Rxb3 h5) 35. Rh3 $18 {[%emt 0:00:25]} h5 {[%emt 0:00:17] [#]} 36. Qg5 $1 {[%emt 0:00:26][%cal Oh3h5]} Qg1+ {[%emt 0:00:40]} 37. Ka2 {[%emt 0:00:05][%cal Oh3h5]} b3+ {[%emt 0:00:14]} 38. Kxb3 {[%emt 0:00:06][%cal Oh3h5] Rxh5+! would kill now.} Rc5 {[%emt 0:00:53] [#]} 39. Rxh5+ $1 {[%emt 0:00:08][%mdl 512]} gxh5 {[%emt 0:00:15]} (39... Kg8 40. Rh8+) 40. Qg7# {[%emt 0:00:04] Weighted Error Value: White=0.20 (precise) /Black=0.51  Loses game:     	---       	Black=1      Missed win:     	White=1     	---        Mistake:       	White=4     	Black=2      Inaccurate:     	White=3     	Black=6      OK:         	White=9     	Black=6      Best:        	White=3     	Black=1      Strong:       	White=2     	---} 1-0

[Event "Slovakian ECo-C Extraliga 2024-25"]
[Site "Slovakia"]
[Date "2025.01.19"]
[Round "4.2"]
[White "Laurusas, Tomas"]
[Black "Kaczur Florian"]
[Result "1-0"]
[Annotator "TA"]
[ECO "D27"]
[WhiteElo "2580"]
[BlackElo "2479"]
[PlyCount "63"]
[EventDate "2024.09.12"]
[EventType "team-tourn"]
[EventCountry "SVK"]
[SourceTitle "playchess.com"]
[Source "ChessBase"]
[SourceQuality "1"]
[TimeControl "5400+30"]

{[%evp 11,63,28,30,11,17,0,7,0,0,12,50,41,39,35,27,39,38,36,38,17,16,12,66,86,107,88,104,69,87,97,101,88,94,85,101,91,132,123,201,194,412,426,412,416,405,420,576,572,854,854,854,835,1097,1078]} 1. d4 {[%emt 0:00:14]} d5 {[%emt 0:00:12]} 2. c4 {[%emt 0:00:37]} dxc4 {[%emt 0:01:12]} 3. Nf3 {[%emt 0:00:45]} Nf6 {[%emt 0:00:33]} 4. e3 {[%emt 0:01:30]} e6 {[%emt 0:00:49]} 5. Bxc4 {[%emt 0:01:16]} c5 {[%emt 0:03:36]} 6. O-O {[%emt 0:01:05]} a6 {[%emt 0:01:44]} 7. Be2 {[%emt 0:02:29]} Nbd7 {[%emt 0:03:48]} 8. a4 {[%emt 0:04:08]} b6 {[%emt 0:03:35]} 9. Nbd2 {[%emt 0:07:17] The position is equal.} Bb7 {[%emt 0:05:51]} 10. Nc4 {[%emt 0:00:49]} Be7 {[%emt 0:05:54]} 11. dxc5 {[%emt 0:12:45]} Bxc5 {[%emt 0:18:31]} 12. Nd6+ {[%emt 0:03:51]} Bxd6 {[%emt 0:00:09]} 13. Qxd6 {[%emt 0:00:03]} Nc5 {[%emt 0:00:25]} 14. Qxd8+ {[%emt 0:01:22]} Rxd8 {[%emt 0:00:05]} 15. Ra3 {[%emt 0:00:06]} Nd5 {[%emt 0:11:27]} 16. Ne5 {[%emt 0:15:07][%cal Bf3e5,Be5c4,Bc4b6][%mdl 32]} Ke7 {[%emt 0:03:29]} ({Black should play} 16... O-O $11) 17. f3 $1 $14 {[%emt 0:05:34]} a5 {[%emt 0:09:17]} 18. Bb5 {[%emt 0:06:47]} Nb4 {[%emt 0:09:56]} 19. Nc4 {[%emt 0:05:30]} (19. e4 {keeps more tension.} Ba6 20. Be3 Ra8 21. Rd1) 19... Bd5 {[%emt 0:01:17]} 20. Nxb6 {[%emt 0:01:58]} Bb3 {[%emt 0:00:08] [#]} 21. Bc4 $1 {[%emt 0:01:52]} Rb8 {[%emt 0:04:57]} 22. Bxb3 {[%emt 0:01:55]} Rxb6 {[%emt 0:00:04]} 23. Bc4 {[%emt 0:01:22][%cal Bb3c4,Bc4b5,Bb5a4][%mdl 32] Inhibits Nbd3.} Rd8 {[%emt 0:03:35]} 24. Bb5 {[%emt 0:03:03]} Ncd3 {[%emt 0:01:27] [#]} (24... Rbd6 $16 {was called for.} 25. e4 e5) 25. Bd2 $1 $18 {[%emt 0:01:30][%cal Bc1d2,Bd2c3,Bc3a5,Ba5b6,Bb6c5][%mdl 32] Bxd3 is the strong threat.} Nxb2 {[%emt 0:01:13]} (25... Ne5 26. Bxb4+ axb4) 26. Bc3 $1 {[%emt 0:02:32][%csl LRb2,LRg7]} Nc2 {[%emt 0:05:06]} 27. Ra2 {[%emt 0:05:42]} ({Weaker is} 27. Bxa5 Rxb5 28. Bxd8+ (28. axb5 Nxa3 29. Bb4+ Ke8 $11) 28... Kxd8 $18) 27... Nxa4 {[%emt 0:03:08]} 28. Bxa4 {[%emt 0:00:57] This pair of bishops is nice.} Nxe3 {[%emt 0:00:05]} 29. Bxa5 {[%emt 0:00:43] White is clearly winning.} Nxf1 {[%emt 0:00:09]} 30. Bxb6 {[%emt 0:00:10]} Rd2 {[%emt 0:00:07]} 31. Ra1 {[%emt 0:00:16]} Rb2 {[%emt 0:00:18]} 32. Bc5+ {[%emt 0:00:08] Weighted Error Value: White=0.05 (flawless) /Black=0.34.  Mistake:       	---       	Black=3      Inaccurate:     	White=1     	Black=4      OK:         	White=10    	Black=8      Best:        	White=3     	Black=2      Strong:       	White=3     	---} 1-0

[Event "Slovakian ECo-C Extraliga 2024-25"]
[Site "Slovakia"]
[Date "2025.01.19"]
[Round "4.2"]
[White "Tazbir, Marcin"]
[Black "Babula, Vlastimil"]
[Result "1/2-1/2"]
[Annotator "TA"]
[ECO "A13"]
[WhiteElo "2502"]
[BlackElo "2497"]
[PlyCount "23"]
[EventDate "2024.09.12"]
[EventType "team-tourn"]
[EventCountry "SVK"]
[SourceTitle "playchess.com"]
[Source "ChessBase"]
[SourceQuality "1"]
[TimeControl "5400+30"]

{[%evp 14,23,16,0,27,-8,0,-11,-25,0,0,-23]} 1. c4 {[%emt 0:00:03]} e6 {[%emt 0:00:34]} 2. g3 {[%emt 0:00:20]} d5 {[%emt 0:00:12]} 3. Bg2 {[%emt 0:00:05]} Nf6 {[%emt 0:00:26]} 4. Nf3 {[%emt 0:00:54]} d4 {[%emt 0:01:13]} 5. O-O {[%emt 0:00:11]} c5 {[%emt 0:00:32]} 6. e3 {[%emt 0:01:37]} Nc6 {[%emt 0:00:28]} 7. exd4 {[%emt 0:00:07]} cxd4 {[%emt 0:00:13]} 8. d3 {[%emt 0:00:09]} h6 {[%emt 0:00:41]} 9. a3 {[%emt 0:01:49]} a5 $1 {[%emt 0:00:37]} 10. Re1 {[%emt 0:03:27]} Bd6 {[%emt 0:01:22]} 11. Nbd2 {[%emt 0:02:31]} O-O {[%emt 0:01:16]} 12. Qc2 {[%emt 0:02:18]} 1/2-1/2

[Event "Slovakian ECo-C Extraliga 2024-25"]
[Site "Slovakia"]
[Date "2025.01.19"]
[Round "4.2"]
[White "Finek, Vaclav"]
[Black "Jakab, Bela"]
[Result "1-0"]
[Annotator "TA"]
[ECO "E06"]
[WhiteElo "2483"]
[BlackElo "2346"]
[PlyCount "69"]
[EventDate "2024.09.12"]
[EventType "team-tourn"]
[EventCountry "SVK"]
[SourceTitle "playchess.com"]
[Source "ChessBase"]
[SourceQuality "1"]
[TimeControl "5400+30"]

{[%evp 11,69,25,31,26,22,31,29,14,16,9,36,37,52,57,54,45,48,50,57,55,116,117,116,112,97,88,137,131,164,148,140,141,197,154,167,152,199,195,214,215,423,400,465,469,618,614,29988,508,29989,29990,29990,1229,1201,643,622,608,758,658,1238,1204]} 1. d4 {[%emt 0:00:05]} d5 {[%emt 0:00:05]} 2. c4 {[%emt 0:00:04]} e6 {[%emt 0:00:04]} 3. Nf3 {[%emt 0:00:06]} Nf6 {[%emt 0:00:04]} 4. g3 {[%emt 0:00:05]} Be7 {[%emt 0:00:04]} 5. Bg2 {[%emt 0:00:05]} O-O {[%emt 0:00:05]} 6. O-O {[%emt 0:00:08]} a5 {[%emt 0:00:23]} 7. Nc3 {[%emt 0:01:13] E06: Closed Catalan: Early deviations.} dxc4 {[%emt 0:03:29]} 8. Ne5 {[%emt 0:03:36]} Nc6 {[%emt 0:06:09]} 9. Nxc6 {[%emt 0:24:29] White has an edge.} bxc6 {[%emt 0:00:14]} 10. Qa4 {[%emt 0:00:18] White sacrificed a pawn} Rb8 {[%emt 0:24:02]} (10... Qxd4 {seems wilder.} 11. Qxc6 Ra6 12. Qxc7 Bd6) 11. Rd1 {[%emt 0:09:09]} (11. Qxc6 Rb4 12. Qa8 c5 13. dxc5 Qc7 $15 (13... Bxc5 14. a3 $11)) (11. Qxc4 c5 $11) 11... Nd5 {[%emt 0:08:37]} 12. Qxc4 {[%emt 0:06:50]} Nb4 {[%emt 0:05:24][%cal Oa5a4]} 13. Qb3 {[%emt 0:04:37]} (13. Bxc6 Ba6 14. Bb5 Rxb5 15. Nxb5 c6 $15) 13... Ba6 {[%emt 0:01:02]} 14. Qa4 {[%emt 0:05:35][%csl LRa5,LRc6]} Nd5 $146 {[%emt 0:06:16]} (14... Bb5 15. Nxb5 cxb5 16. Qxa5 c5 17. Qa7 Nc2 18. Bf4 Nxa1 19. Bxb8 Nc2 20. d5 Nd4 {1-0 Kusa,J (2303)-Mladek,R (2365) CZE-chT 2122 2021 (9.4)}) 15. Bf3 {[%emt 0:03:29]} (15. Qxc6 Nxc3 16. bxc3 Bxe2 $11) 15... Qd7 {[%emt 0:12:08] [#] White stays focused until the end.} (15... Nxc3 $14 16. bxc3 Bb5) 16. Nxd5 $1 $16 {[%emt 0:04:41]} exd5 {[%emt 0:00:07]} 17. Qxa5 {[%emt 0:00:59]} Rb6 {[%emt 0:08:47]} 18. Qc3 {[%emt 0:03:03]} Rfb8 {[%emt 0:02:04]} (18... g5 $142) 19. Qc2 {[%emt 0:03:46]} Qh3 {[%emt 0:02:40]} 20. b3 {[%emt 0:03:13]} Bc8 {[%emt 0:01:08]} 21. Bf4 {[%emt 0:01:55]} R8b7 {[%emt 0:00:44]} (21... Bd6 $16) 22. Bg2 {[%emt 0:02:37]} Qh5 {[%emt 0:00:42]} 23. e4 {[%emt 0:02:13][%cal Be2e4,Be4d5][%mdl 32]} g5 {[%emt 0:06:44]} (23... Bh3 $16 {is a better defense.} 24. Re1 Bxg2 25. Kxg2 Ra7) 24. Be3 $18 {[%emt 0:03:25]} Bg4 {[%emt 0:00:29]} 25. Re1 {[%emt 0:02:49]} c5 $2 {[%emt 0:04:25] [#]} (25... Bf3 26. Bxf3 Qxf3) 26. exd5 {[%emt 0:03:15]} (26. dxc5 Rh6 $18) 26... Rh6 {[%emt 0:00:19]} 27. h4 {[%emt 0:01:12]} ({Less strong is} 27. dxc5 Qxh2+ 28. Kf1 Bf6 $18) 27... cxd4 {[%emt 0:00:32]} 28. Bxd4 {[%emt 0:00:56]} Bf6 {[%emt 0:00:12]} 29. Re8+ {[%emt 0:01:39]} Kg7 {[%emt 0:00:04]} 30. Qc5 {[%emt 0:01:00]} Bxd4 {[%emt 0:02:39]} 31. Qxd4+ {[%emt 0:00:19]} (31. Qf8+ $142 Kg6 32. Be4+ Bf5 33. Re6+ (33. Qg8+ Bg7 $18) 33... fxe6 34. dxe6 Bxf2+ 35. Kf1 (35. Kxf2 Qf3+ 36. Bxf3 gxh4 37. Rg1 h3 38. e7 Rb8 39. Qxb8 Bd7 40. Qg8+ Kf5) 35... Qd1+ 36. Rxd1) 31... Rf6 {[%emt 0:00:08] White is clearly winning.} 32. Rg8+ {[%emt 0:03:11]} Kxg8 {[%emt 0:00:05]} 33. Qxf6 {[%emt 0:00:04]} gxh4 {[%emt 0:00:10]} 34. Re1 {[%emt 0:00:08]} Rb8 {[%emt 0:00:08] Wards off Re8+} 35. Re5 {[%emt 0:00:13] Weighted Error Value: White=0.39/Black=0.75  Mistake:       	---       	Black=5      Inaccurate:     	---       	Black=3      OK:         	White=12    	Black=7      Best:        	White=2     	---        Strong:       	White=1     	---} 1-0

[Event "Slovakian ECo-C Extraliga 2024-25"]
[Site "Slovakia"]
[Date "2025.01.19"]
[Round "4.2"]
[White "Ponizil Cyril"]
[Black "Ftacnik Lubomir"]
[Result "1-0"]
[Annotator "TA"]
[ECO "D72"]
[WhiteElo "2465"]
[BlackElo "2440"]
[PlyCount "109"]
[EventDate "2024.09.12"]
[EventType "team-tourn"]
[EventCountry "SVK"]
[SourceTitle "playchess.com"]
[Source "ChessBase"]
[SourceQuality "1"]
[TimeControl "5400+30"]

{[%evp 19,109,0,10,-18,0,0,0,-10,0,-6,95,109,101,93,99,104,89,95,86,100,100,77,80,56,49,48,188,171,192,186,175,0,0,0,172,183,220,183,227,138,213,98,264,218,175,154,292,281,306,135,200,240,238,237,261,260,270,270,263,233,262,236,287,282,305,246,246,246,375,339,384,376,531,356,297,775,663,666,915,889,799,611,422,960,871,750,730,576,1891,2002,6556,6554]} 1. c4 {[%emt 0:00:04]} Nf6 {[%emt 0:00:49]} 2. g3 {[%emt 0:00:04]} g6 {[%emt 0:02:38]} 3. Bg2 {[%emt 0:00:15]} Bg7 {[%emt 0:00:12]} 4. d4 {[%emt 0:00:06][%cal Bd2d4,Bd4d5][%mdl 32]} d5 {[%emt 0:00:36]} 5. cxd5 {[%emt 0:00:07]} Nxd5 {[%emt 0:00:07]} 6. e4 {[%emt 0:00:09]} Nb6 {[%emt 0:00:29]} 7. Ne2 {[%emt 0:00:07]} c5 {[%emt 0:00:55]} 8. d5 {[%emt 0:00:05]} e6 {[%emt 0:00:15]} 9. O-O {[%emt 0:00:10]} O-O {[%emt 0:00:33]} 10. Nec3 {[%emt 0:00:21]} Na6 {[%emt 0:03:42]} 11. h3 {[%emt 0:04:34]} Re8 {[%emt 0:05:41]} 12. Na3 {[%emt 0:05:38]} exd5 {[%emt 0:10:49]} 13. exd5 {[%emt 0:00:05]} Bd7 {[%emt 0:00:32]} 14. Bf4 {[%emt 0:03:55]} Be5 {[%emt 0:04:00]} (14... Nb4 $11 {keeps the balance.}) 15. Qd2 $16 {[%emt 0:01:33]} Nb4 {[%emt 0:06:10]} 16. Bxe5 $1 {[%emt 0:09:18]} Rxe5 {[%emt 0:00:23]} 17. Rfe1 {[%emt 0:00:09]} Rxe1+ {[%emt 0:09:56]} 18. Rxe1 {[%emt 0:00:05]} (18. Qxe1 Qf6 $14) 18... Bf5 {[%emt 0:00:12]} 19. g4 {[%emt 0:21:31]} Bd3 {[%emt 0:02:54][%cal Oc5c4]} 20. Qe3 {[%emt 0:00:19]} Rc8 {[%emt 0:05:18][%cal Od8f8]} 21. Rd1 {[%emt 0:14:00]} c4 {[%emt 0:01:26]} 22. Qd4 $36 {[%emt 0:00:08][%mdl 2048] White is pushing.} Nc6 {[%emt 0:16:17]} ({Black should play} 22... h6 $14) 23. Qf4 $18 {[%emt 0:02:05]} (23. dxc6 $2 Qxd4 24. Nab5 Qc5 25. cxb7 Rb8 26. Nxa7 Qe7 $19) 23... g5 {[%emt 0:05:11]} 24. Qe3 {[%emt 0:03:55]} Nb4 {[%emt 0:00:36]} 25. Qd4 $2 {[%emt 0:03:38] Dodges N6xd5} ({Only move:} 25. d6 $1 $18) 25... Nc6 $11 {[%emt 0:00:15]} 26. Qe3 $2 {[%emt 0:00:04]} (26. dxc6 $2 Qxd4 27. Nab5 Qf4 28. cxb7 Rf8 $19) (26. Qc5 $11 Ne7 27. Qd4) 26... Nb4 $18 {[%emt 0:00:07] [#]} 27. d6 $1 {[%emt 0:03:55][%mdl 512]} Qxd6 {[%emt 0:13:19]} (27... h6 28. Nab5) 28. Qxg5+ {[%emt 0:00:05]} Qg6 {[%emt 0:00:27]} 29. Qf4 {[%emt 0:03:25]} Rd8 {[%emt 0:03:50] [#]} (29... h6 $16 30. Bxb7 Rd8) 30. Bxb7 {[%emt 0:01:53]} (30. b3 $1 $18 {[%cal Rb3c4] has better winning chances.}) 30... N6d5 $2 {[%emt 0:02:45]} (30... f5 $16) 31. Nxd5 {[%emt 0:02:42]} Nxd5 {[%emt 0:00:08]} 32. Qe5 {[%emt 0:05:19]} Nb6 {[%emt 0:02:36] [#]} (32... Qg7 $16 33. Qxg7+ Kxg7) 33. Be4 $1 {[%emt 0:02:23][%mdl 512]} Qg7 {[%emt 0:00:27]} (33... Qh6 34. Nxc4) 34. Qxg7+ {[%emt 0:04:16]} Kxg7 {[%emt 0:00:02] [#]} 35. Nxc4 $1 {[%emt 0:01:54][%mdl 512]} Nxc4 {[%emt 0:00:39]} 36. Rxd3 {[%emt 0:00:02]} (36. Bxd3 $2 {perishes.} Nxb2 37. Rb1 Nxd3 $19) 36... Rxd3 {[%emt 0:00:19]} 37. Bxd3 {[%emt 0:00:01]} Nxb2 {[%emt 0:00:09][%mdl 4096] Endgame KB-KN. White is a pawn up.} 38. Bc2 {[%emt 0:01:13]} Nc4 {[%emt 0:01:29]} 39. Kg2 {[%emt 0:00:12]} Ne5 {[%emt 0:01:13]} 40. Kg3 {[%emt 0:00:38]} h6 {[%emt 0:00:23]} 41. Kf4 {[%emt 0:00:53]} Kf6 {[%emt 0:01:25]} 42. Be4 {[%emt 0:02:18]} Nc4 {[%emt 0:00:00]} 43. h4 {[%emt 0:00:00][%cal Bh3h4,Bh4h5][%mdl 32]} Nb6 {[%emt 0:00:00]} (43... Ne5 44. Bc2 Nd7) 44. Bc6 {[%emt 0:00:00]} Nc8 {[%emt 0:00:00]} 45. Ke4 {[%emt 0:00:00]} Ne7 {[%emt 0:00:00]} (45... a5 {was necessary.} 46. f4 Ne7) 46. Bd7 {[%emt 0:00:00]} Ng6 {[%emt 0:00:00][%cal Be7g6,Bg6e5,Be5c6,Bc6b4,Bb4c2,Bc2e1][%mdl 32]} 47. h5 {[%emt 0:00:00]} Ne5 {[%emt 0:00:00]} 48. Bf5 {[%emt 0:00:00]} Nc6 {[%emt 0:00:00]} 49. f4 {[%emt 0:00:00]} Nb4 {[%emt 0:00:00]} 50. a3 {[%emt 0:00:00]} Nc2 {[%emt 0:00:00]} 51. a4 {[%emt 0:00:00]} Ne1 {[%emt 0:00:00]} 52. Bd7 {[%emt 0:00:00]} Nc2 {[%emt 0:00:00]} 53. Bb5 {[%emt 0:00:00]} Ne1 {[%emt 0:00:00]} 54. Bd3 {[%emt 0:00:00] Black must now prevent Bb1. Wards off Nc2} a5 {[%emt 0:01:44]} 55. Bb1 {[%emt 0:00:00]} 1-0